bitfinex/quotes_ETHUSD_20251024
["timestamp","ask_amount","ask_price","bid_price","bid_amount"]
[1761280693023,0.03153845,3949.0,3946.6,0.3814457]
[1761280693252,0.03153845,3949.0,3946.7,0.50688]
[1761280693451,0.03153845,3949.6,3946.8,0.3814457]
[1761280694815,0.001,3950.8,3946.9,0.50688]
[1761280695034,0.001,3950.8,3949.5,0.1264]
[1761280695324,0.001,3950.8,3950.3,0.1264]
[1761280695325,0.03253845,3950.8,3950.3,0.1264]
[1761280695779,0.462,3950.4,3950.3,0.1264]
[1761280696100,0.49353845,3950.4,3950.3,0.1264]
[1761280696403,0.001,3950.4,3950.3,0.1264]
[1761280702190,0.001,3950.4,3950.3,3.134]
[1761280702888,0.001,3950.4,3948.7,0.3814457]
[1761280703101,0.001,3950.4,3948.8,2.705]
[1761280703486,0.001,3950.4,3948.9,1.9366457]
[1761280703709,0.001,3950.4,3949.0,0.53220286]
[1761280704014,0.001,3950.4,3949.1,1.9366457]
[1761280704171,0.001,3950.4,3949.2,0.02532158]
[1761280704369,0.001,3950.4,3949.3,0.3814457]
[1761280704587,0.001,3950.4,3949.4,0.0253203]
[1761280704798,0.001,3950.4,3949.5,0.3814457]
[1761280705019,0.001,3950.4,3949.6,0.02531901]
[1761280705371,0.001,3950.4,3949.6,0.40676471]
[1761280705793,0.001,3950.4,3949.8,1.5552]
[1761280705991,0.001,3950.4,3949.7,3.87]
[1761280706183,0.001,3950.4,3949.8,5.414]
[1761280706567,0.001,3950.4,3949.7,3.87]
[1761280706767,0.001,3950.4,3949.8,3.515]
[1761280707421,0.001,3950.4,3949.9,3.514]
[1761280708387,0.001,3950.4,3949.7,3.87]
[1761280708587,0.001,3950.4,3949.8,3.514]
[1761280710213,0.001,3950.4,3949.9,3.513]
[1761280710516,0.001,3950.4,3948.6,1.5552]
[1761280710674,0.001,3950.4,3948.8,3.4542]
[1761280711094,0.001,3950.4,3948.8,1.899]
[1761280711307,0.4344,3950.4,3948.7,3.87]
[1761280711628,0.03153845,3950.3,3948.9,3.513]
[1761280712116,0.03153845,3950.3,3950.2,0.1264]
[1761280712983,0.001,3950.4,3950.2,3.6394]
[1761280713208,0.001,3950.4,3950.3,0.02531453]
[1761280713415,0.001,3950.4,3950.3,0.1264]
[1761280713610,0.001,3950.4,3950.3,0.02531453]
[1761280714106,0.001,3950.4,3950.3,5.411]
[1761280715988,0.001,3950.4,3949.5,0.2528]
[1761280716307,0.001,3950.4,3949.6,0.2528]
[1761280716511,0.001,3950.4,3949.7,5.41]
[1761280717096,0.001,3950.4,3949.5,0.3814457]
[1761280717097,0.001,3950.4,3949.8,5.41]
[1761280717716,0.001,3950.4,3949.9,1.899]
[1761280717918,0.001,3950.4,3950.0,3.51]
[1761280719025,0.001,3950.4,3949.1,1.90933342]
[1761280719215,0.001,3950.4,3949.2,15.749]
[1761280719841,0.001,3950.4,3949.3,3.87]
[1761280720637,0.001,3950.4,3949.3,1.9366457]
[1761280720933,0.001,3950.4,3949.3,1.5552]
[1761280722627,0.001,3950.4,3949.3,1.9366457]
[1761280723499,0.001,3950.4,3950.3,0.1264]
[1761280723700,0.001,3950.4,3950.3,3.6344]
[1761280725305,0.001,3950.4,3950.3,0.1264]
[1761280725516,0.4539,3950.4,3948.2,1.899]
[1761280725819,0.4539,3950.4,3948.3,3.3892]
[1761280726024,0.4539,3950.4,3948.4,0.02532671]
[1761280726603,0.03153845,3950.3,3948.3,1.899]
[1761280726811,0.03153845,3950.3,3945.9,5.71278454]
[1761280726812,8.97036104,3949.5,3948.0,1.899]
[1761280727043,0.03153845,3949.4,3945.9,5.71278454]
[1761280727238,0.71413845,3949.4,3946.4,0.33477903]
[1761280727499,0.6826,3949.4,3946.5,0.2781389]
[1761280727719,0.4529,3949.3,3946.5,0.61291793]
[1761280728324,0.2297,3949.4,3946.5,0.61291793]
[1761280728325,0.2297,3949.4,3947.0,0.50688]
[1761280728642,0.2297,3949.4,3947.2,0.50688]
[1761280728806,0.2297,3949.4,3947.3,0.02533377]
[1761280729006,0.4529,3949.3,3947.3,0.02533377]
[1761280731725,0.001,3950.4,3947.3,0.02533377]
[1761280731726,0.2297,3949.7,3947.3,0.02533377]
[1761280731904,0.2297,3949.7,3947.4,0.33477903]
[1761280732111,0.2297,3949.7,3947.5,0.53221248]
[1761280732325,0.2297,3949.7,3947.6,0.33477903]
[1761280732527,0.2297,3949.7,3947.3,0.2528]
[1761280732729,0.4529,3949.6,3947.3,0.2528]
[1761280732934,0.2297,3949.7,3947.4,0.53221313]
[1761280734685,0.2297,3949.7,3947.5,0.2528]
[1761280735002,0.4529,3949.6,3947.2,0.50688]
[1761280735200,0.4529,3949.6,3947.4,0.50688]
[1761280735479,0.4529,3949.6,3949.5,0.1264]
[1761280735786,0.4529,3949.6,3949.5,3.6304]
[1761280736080,0.4529,3949.6,3949.5,0.1264]
[1761280736280,0.4529,3949.6,3949.5,3.6294]
[1761280736676,0.4529,3949.6,3949.5,0.1264]
[1761280736892,0.4529,3949.6,3949.5,3.6294]
[1761280737091,0.4529,3949.6,3949.5,0.1264]
[1761280737314,0.2297,3949.7,3949.5,3.6294]
[1761280737861,0.6826,3949.7,3949.5,0.1264]
[1761280738175,0.6826,3949.7,3949.6,0.119]
[1761280738691,0.2297,3949.7,3949.6,0.119]
[1761280738892,0.2297,3949.7,3949.6,2.398]
[1761280739191,0.6912,3949.7,3949.5,0.1264]
[1761280739396,0.6912,3949.7,3949.6,3.502]
[1761280739599,0.4615,3949.6,3949.5,0.1264]
[1761280739790,0.4615,3949.6,3949.5,3.6284]
[1761280740173,0.2297,3949.7,3949.5,7.4984]
[1761280740783,0.6912,3949.7,3949.5,7.4984]
[1761280741283,0.4615,3949.6,3949.5,7.4984]
[1761280741482,0.2297,3949.7,3949.5,7.4984]
[1761280741806,0.6912,3949.7,3949.5,7.4984]
[1761280742007,0.001,3950.4,3949.5,3.6284]
[1761280742008,0.2258,3949.9,3949.5,3.6284]
[1761280742171,0.2258,3949.9,3949.5,3.502]
[1761280742379,0.4615,3949.8,3948.9,3.87]
[1761280742577,0.4615,3949.8,3949.6,3.501]
[1761280742776,0.4615,3949.8,3949.7,0.1264]
[1761280743672,0.4615,3949.8,3949.7,3.6274]
[1761280743873,0.4615,3949.8,3949.7,3.6264]
[1761280744385,0.4615,3949.8,3949.7,0.1264]
[1761280744676,0.4615,3949.8,3949.7,3.6264]
[1761280745803,0.4615,3949.8,3949.7,3.5]
[1761280746106,0.4615,3949.8,3949.7,3.499]
[1761280746291,0.2258,3949.9,3949.7,3.499]
[1761280746605,0.6873,3949.9,3949.7,3.499]
[1761280746995,0.2258,3949.9,3949.7,3.499]
[1761280747195,0.001,3950.1,3949.8,0.02531773]
[1761280747496,0.001,3950.1,3949.8,1.5552]
[1761280747700,0.001,3950.1,3949.9,0.50688]
[1761280748190,0.001,3950.1,3950.0,0.86697548]
[1761280748580,0.001,3950.1,3950.0,0.84165903]
[1761280749200,0.001,3950.1,3950.0,0.50688]
[1761280749398,0.001,3950.1,3950.0,2.61511283]
[1761280749730,0.001,3950.1,3950.0,6.14765903]
[1761280750012,0.001,3950.1,3950.0,2.64965903]
[1761280750211,0.001,3950.1,3950.0,8.07197548]
[1761280750377,0.001,3950.1,3950.0,8.04665903]
[1761280751175,0.001,3950.1,3950.0,8.04565903]
[1761280751611,0.001,3950.1,3950.0,7.79285903]
[1761280752113,0.001,3950.1,3949.6,1.392]
[1761280752320,0.001,3950.1,3950.0,1.899]
[1761280752684,0.001,3950.1,3950.0,5.025]
[1761280753614,0.4625,3950.1,3949.5,1.899]
[1761280753819,0.4625,3950.1,3947.0,1.392]
[1761280753820,0.4625,3950.1,3949.6,1.804]
[1761280754003,0.4625,3950.1,3947.0,1.392]
[1761280754191,0.4625,3950.1,3948.0,0.35186916]
[1761280754396,0.4625,3950.1,3948.1,1.198]
[1761280755283,0.4625,3950.1,3948.2,0.50688]
[1761280755619,0.4625,3950.1,3948.1,1.198]
[1761280755915,0.4625,3950.1,3950.0,0.1264]
[1761280756085,0.4625,3950.1,3950.0,1.4814]
[1761280757718,0.4625,3950.1,3950.0,0.1264]
[1761280757918,0.4625,3950.1,3950.0,0.2454]
[1761280758712,0.4625,3950.1,3950.0,1.8224]
[1761280759095,0.4625,3950.1,3950.0,0.1264]
[1761280759306,0.4625,3950.1,3950.0,3.6194]
[1761280759819,0.4625,3950.1,3950.0,0.1264]
[1761280759983,0.4625,3950.1,3950.0,3.5644]
[1761280761240,0.4625,3950.1,3950.0,3.6184]
[1761280761586,0.4625,3950.1,3950.0,0.1264]
[1761280761831,2.99408147,3950.1,3950.0,0.1264]
[1761280762119,2.99408147,3950.1,3946.6,0.35186916]
[1761280762120,2.04923845,3950.1,3946.6,0.35186916]
[1761280762328,2.04923845,3950.1,3946.4,0.12586748]
[1761280762329,8.66769537,3949.6,3947.1,3.095]
[1761280762489,2.56350452,3949.5,3947.1,3.095]
[1761280762693,3.02500452,3949.5,3947.1,3.095]
[1761280762997,0.4615,3949.4,3947.2,1.5552]
[1761280763195,0.03153845,3949.3,3947.2,1.5552]
[1761280763421,0.03153845,3949.3,3947.2,2.06208]
[1761280763620,0.03153845,3949.3,3949.2,0.1264]
[1761280764237,0.4615,3949.3,3949.2,0.1264]
[1761280765737,3.02513274,3949.3,3949.2,0.1264]
[1761280766039,0.49303845,3949.3,3949.2,0.1264]
[1761280766613,3.02513274,3949.3,3949.2,0.1264]
[1761280767449,4.58033274,3949.3,3949.2,0.1264]
[1761280767626,4.58033274,3949.3,3948.0,0.21]
[1761280767627,0.4615,3949.3,3948.0,0.21]
[1761280767811,0.449,3949.2,3948.0,0.21]
[1761280768012,0.48053845,3949.2,3948.0,0.21]
[1761280768330,0.2258,3949.7,3948.0,0.21]
[1761280768331,0.03153845,3949.6,3948.0,0.21]
[1761280768538,0.449,3949.5,3948.0,0.21]
[1761280768712,0.03153845,3949.4,3948.0,0.21]
[1761280769144,0.4482,3949.4,3948.0,0.21]
[1761280769316,0.03153845,3949.3,3948.0,0.21]
[1761280769769,0.4482,3949.2,3948.0,0.21]
[1761280770113,0.4482,3949.2,3947.1,0.50688]
[1761280770114,0.03153845,3949.1,3948.1,0.857]
[1761280770331,0.03153845,3949.1,3948.2,0.857]
[1761280770510,0.4482,3949.0,3948.2,0.857]
[1761280770709,0.2258,3949.7,3948.2,0.857]
[1761280771158,0.4492,3950.1,3948.3,0.53220735]
[1761280771317,0.4492,3950.1,3948.4,0.02532671]
[1761280771943,0.001,3950.1,3948.4,0.53220671]
[1761280772715,0.001,3950.1,3948.4,0.50688]
[1761280773116,0.001,3950.1,3948.3,0.50688]
[1761280774018,0.4482,3950.0,3948.3,0.50688]
[1761280774413,0.4482,3950.0,3947.3,0.35186916]
[1761280774414,0.2268,3949.9,3947.3,0.35186916]
[1761280774616,0.03153845,3949.8,3947.5,2.06208]
[1761280774817,0.47973845,3949.8,3947.5,2.06208]
[1761280775449,0.2268,3949.9,3947.5,2.06208]
[1761280775450,0.675,3949.9,3947.5,2.41394916]
[1761280775652,0.4482,3949.8,3947.7,2.06208]
[1761280775822,0.4482,3949.8,3947.9,2.06208]
[1761280776248,0.4482,3949.8,3947.9,2.08740992]
[1761280776460,0.4482,3949.8,3947.9,2.06208]
[1761280777639,0.4482,3949.8,3949.7,0.1264]
[1761280779958,0.4482,3949.8,3949.7,0.2454]
[1761280780337,0.4482,3949.8,3949.7,0.1264]
[1761280782153,0.2268,3949.9,3949.7,0.1264]
[1761280783176,0.001,3950.0,3949.7,0.1264]
[1761280783395,0.2268,3949.9,3949.7,0.1264]
[1761280783587,0.2268,3949.9,3949.5,1.679]
[1761280783740,0.2268,3949.9,3949.8,0.1264]
[1761280784693,0.001,3950.0,3949.8,0.1264]
[1761280785194,0.2268,3949.9,3949.8,0.1264]
[1761280785695,0.675,3949.9,3949.8,0.1264]
[1761280787959,0.2268,3949.9,3949.8,0.1264]
[1761280789397,0.675,3949.9,3949.8,0.1264]
[1761280790214,0.001,3950.0,3949.8,3.87]
[1761280790414,0.001,3950.0,3949.8,0.35186916]
[1761280790746,0.001,3950.0,3949.9,0.85874916]
[1761280790895,0.001,3950.0,3949.9,0.88406625]
[1761280793002,0.001,3950.0,3949.9,5.89194916]
[1761280794855,0.001,3950.0,3949.9,2.41394916]
[1761280795071,0.001,3950.0,3949.9,7.78994916]
[1761280796428,0.001,3950.0,3949.9,11.65994916]
[1761280797239,0.001,3950.0,3949.9,5.93208]
[1761280797437,0.001,3950.0,3949.9,11.30608]
[1761280798058,0.001,3950.0,3949.9,7.43608]
[1761280798628,0.001,3950.0,3949.4,1.899]
[1761280798947,0.001,3950.0,3949.5,2.03831966]
[1761280799130,0.001,3950.0,3949.5,3.59351966]
[1761280799329,0.001,3950.0,3949.7,0.50688]
[1761280799634,0.001,3950.0,3949.8,0.02531773]
[1761280800040,0.001,3950.0,3949.9,6.9282]
[1761280800241,0.001,3950.0,3949.9,7.0546]
[1761280801239,0.001,3950.0,3949.9,7.56148]
[1761280801643,0.001,3950.0,3949.9,1.6816]
[1761280801843,0.001,3950.0,3949.9,5.4964]
[1761280803084,0.001,3950.0,3949.9,0.1264]
[1761280803460,0.001,3950.0,3949.9,2.4674]
[1761280803781,0.4409,3950.0,3949.9,2.0244]
[1761280803948,0.4409,3950.0,3949.9,5.0904]
[1761280804143,0.4409,3950.0,3949.9,0.1264]
[1761280804349,0.4409,3950.0,3949.9,3.5974]
[1761280804876,0.4409,3950.0,3949.9,3.471]
[1761280806777,0.001,3950.0,3949.9,3.49631709]
[1761280807375,0.001,3950.0,3949.9,5.05151709]
[1761280809291,0.001,3950.0,3949.9,5.55839709]
[1761280809496,0.001,3950.0,3949.9,5.53308]
[1761280810494,0.001,3950.0,3949.9,5.88494916]
[1761280811716,0.001,3950.0,3949.9,5.53308]
[1761280813716,0.001,3950.5,3950.0,2.41394916]
[1761280813890,0.001,3950.5,3950.1,0.02531581]
[1761280814101,0.001,3950.5,3950.3,0.50688]
[1761280814291,0.001,3950.8,3950.5,2.06208]
[1761280814619,0.001,3950.8,3950.7,2.06208]
[1761280814822,0.001,3950.8,3950.7,0.50688]
[1761280815125,0.001,3950.8,3950.7,7.90434916]
[1761280816206,0.001,3950.9,3950.8,2.06208]
[1761280816606,0.001,3950.9,3950.8,2.08739132]
[1761280817016,0.001,3950.9,3950.8,7.44939132]
[1761280817218,0.001,3950.9,3950.8,6.9172]
[1761280817527,0.001,3950.9,3950.8,7.42408]
[1761280818426,0.001,3950.9,3950.8,17.76408]
[1761280820607,0.001,3950.9,3950.8,12.40208]
[1761280820814,0.001,3950.9,3950.8,13.7932]
[1761280821035,0.001,3950.9,3950.8,17.76208]
[1761280821425,0.001,3950.9,3950.8,11.29208]
[1761280822017,0.001,3950.9,3950.8,5.93208]
[1761280822214,0.001,3950.9,3950.8,7.42208]
[1761280822412,0.001,3950.9,3950.8,2.06208]
[1761280822613,0.2234,3950.9,3950.8,2.06208]
[1761280822812,0.2234,3950.9,3950.8,7.42108]
[1761280823333,0.001,3950.9,3950.8,7.42108]
[1761280823744,0.001,3950.9,3950.8,7.77294916]
[1761280824682,0.001,3950.9,3950.8,4.31194916]
[1761280824816,0.6633,3950.9,3950.8,5.358]
[1761280825019,0.6633,3950.9,3949.9,0.002]
[1761280825375,0.001,3950.9,3950.1,0.50688]
[1761280825645,0.001,3950.9,3950.4,0.50688]
[1761280826145,0.2234,3950.9,3950.6,0.50688]
[1761280826445,0.2234,3950.9,3950.8,1.5552]
[1761280826646,0.2234,3950.9,3950.7,1.898]
[1761280826846,0.6633,3950.9,3950.8,3.459]
[1761280827053,0.6633,3950.9,3950.8,3.5854]
[1761280828862,0.6633,3950.9,3950.8,0.1264]
[1761280829016,0.6633,3950.9,3950.8,3.5854]
[1761280829532,0.6633,3950.9,3950.8,3.5844]
[1761280830838,0.6633,3950.9,3950.8,3.5834]
[1761280832723,0.6633,3950.9,3949.9,0.002]
[1761280833025,0.6633,3950.9,3947.5,0.002]
[1761280833026,0.2265,3949.9,3948.3,1.898]
[1761280833231,0.2265,3949.9,3949.6,0.83]
[1761280833429,0.4709,3949.8,3949.6,0.83]
[1761280834132,0.4709,3949.8,3949.7,0.02531837]
[1761280834447,0.2265,3949.9,3949.7,0.02531837]
[1761280834631,0.2265,3949.9,3949.6,0.83]
[1761280834827,0.2265,3950.5,3949.7,0.02531837]
[1761280835031,0.2265,3950.5,3949.6,0.83]
[1761280835325,0.4709,3950.4,3949.0,0.50688]
[1761280835529,0.4709,3950.4,3949.6,2.578]
[1761280835961,0.4709,3950.4,3949.7,3.455]
[1761280836754,0.4709,3950.4,3949.8,3.455]
[1761280837760,0.4709,3950.4,3949.9,3.454]
[1761280838081,0.4709,3950.4,3949.6,0.002]
[1761280838361,0.4709,3950.4,3949.7,3.454]
[1761280838958,0.4709,3950.4,3949.8,3.454]
[1761280839162,3.03383375,3950.4,3949.8,3.454]
[1761280839358,0.50243845,3950.4,3949.8,3.454]
[1761280839553,0.4709,3950.3,3949.8,3.454]
[1761280841242,0.4709,3950.3,3949.9,3.453]
[1761280841443,0.4709,3950.3,3949.6,0.002]
[1761280841444,0.03153845,3950.2,3949.6,0.002]
[1761280841644,0.03153845,3950.2,3949.7,3.453]
[1761280841868,0.4709,3950.1,3949.7,3.453]
[1761280842169,0.03153845,3950.0,3949.6,0.002]
[1761280842470,2.53183786,3949.7,3949.6,0.002]
[1761280842671,3.00273786,3949.7,3949.6,0.002]
[1761280842873,3.03427631,3949.7,3949.6,0.1284]
[1761280843074,0.4709,3949.7,3949.6,0.1284]
[1761280844259,0.36810044,3949.7,3949.6,0.1284]
[1761280847950,0.2265,3950.5,3949.6,0.1284]
[1761280848166,0.4709,3950.3,3949.6,0.002]
[1761280848567,0.4709,3950.3,3950.2,0.1264]
[1761280849890,3.0023533,3950.3,3950.2,0.1264]
[1761280850861,3.03389175,3950.3,3950.2,0.1264]
[1761280851189,0.50243845,3950.3,3950.2,0.1264]
[1761280851490,0.4709,3950.3,3950.2,0.1264]
[1761280852586,0.2265,3950.5,3950.2,0.1264]
[1761280852781,0.4709,3950.4,3950.2,0.1264]
[1761280852980,0.4709,3950.4,3949.6,1.63]
[1761280852981,0.4709,3950.4,3949.7,3.87]
[1761280853165,0.2265,3950.5,3950.3,0.1264]
[1761280853359,0.2234,3950.9,3949.8,0.02531773]
[1761280853701,0.2234,3950.9,3950.4,0.1264]
[1761280853998,0.2234,3950.9,3950.8,0.1264]
[1761280854185,0.2234,3950.9,3950.8,3.5744]
[1761280854493,0.6943,3950.9,3950.8,3.5744]
[1761280854878,0.001,3950.9,3950.8,3.5744]
[1761280855062,0.001,3950.9,3950.8,3.448]
[1761280855262,0.001,3950.9,3950.8,3.47331132]
[1761280855855,0.001,3950.9,3950.8,3.448]
[1761280861274,0.001,3950.9,3950.8,5.53539132]
[1761280861462,0.001,3950.9,3950.8,5.82135492]
[1761280861892,0.001,3950.9,3950.8,2.06208]
[1761280862202,0.001,3950.9,3950.8,7.40408]
[1761280863496,0.001,3950.9,3950.8,7.71535492]
[1761280864903,0.001,3950.9,3950.8,11.58535492]
[1761280865092,0.001,3950.9,3950.8,11.71175492]
[1761280866664,0.001,3951.6,3950.8,11.71175492]
[1761280866665,0.001,3951.6,3951.4,0.50688]
[1761280866868,0.001,3951.6,3951.5,9.37008]
[1761280867200,0.001,3951.6,3951.5,9.49648]
[1761280867587,0.001,3951.6,3951.5,10.8866]
[1761280868799,0.001,3951.6,3951.5,5.5486]
[1761280868983,0.001,3951.6,3951.5,10.8856]
[1761280870193,0.001,3951.6,3951.5,5.5486]
[1761280870395,0.001,3951.6,3951.5,10.8846]
[1761280871504,0.4709,3951.6,3951.5,10.8836]
[1761280871885,0.001,3951.6,3951.5,10.8836]
[1761280872402,0.4709,3951.6,3951.5,3.9934]
[1761280872576,0.001,3951.6,3951.5,7.4304]
[1761280873582,0.001,3951.6,3951.5,3.9934]
[1761280873800,0.001,3951.6,3951.5,9.3284]
[1761280875709,0.4709,3951.6,3951.5,9.3284]
[1761280876596,0.001,3951.6,3951.5,9.3274]
[1761280876973,0.001,3951.6,3951.5,5.8914]
[1761280877173,0.4709,3951.6,3951.5,9.3264]
[1761280878173,0.001,3951.6,3951.5,9.3264]
[1761280878503,0.4709,3951.6,3951.5,3.9934]
[1761280878806,0.4709,3951.6,3951.5,7.4274]
[1761280879010,0.4709,3951.6,3951.5,3.9934]
[1761280879306,0.4709,3951.6,3951.5,7.4264]
[1761280880076,0.001,3951.6,3951.5,7.4264]
[1761280880292,0.4709,3951.6,3951.5,7.4264]
[1761280880710,0.4709,3951.6,3951.5,3.5594]
[1761280881104,0.4709,3951.6,3951.5,3.5584]
[1761280884318,0.4709,3951.6,3951.5,3.5574]
[1761280885621,0.4709,3951.6,3951.5,7.4244]
[1761280886326,0.4709,3951.6,3951.5,3.9934]
[1761280886526,0.4709,3951.6,3951.5,7.4234]
[1761280886950,0.4709,3951.6,3951.5,0.1264]
[1761280887116,0.4709,3951.6,3951.5,4.9852]
[1761280887117,0.001,3951.6,3951.5,4.9852]
[1761280887322,0.001,3951.6,3951.5,5.49208]
[1761280887545,0.001,3951.6,3951.5,5.68650768]
[1761280887846,0.001,3951.6,3951.5,5.49208]
[1761280888540,0.001,3951.6,3951.5,2.16335569]
[1761280888743,0.001,3951.6,3951.5,6.65408]
[1761280889541,0.001,3951.6,3951.5,7.38808]
[1761280891249,0.001,3951.6,3951.5,7.76670015]
[1761280892036,0.001,3951.6,3951.5,11.63370015]
[1761280892752,0.001,3952.0,3951.5,8.01990015]
[1761280892913,0.4747,3954.8,3952.0,0.76008]
[1761280893112,0.4747,3954.8,3951.6,2.55835967]
[1761280893113,0.2194,3954.7,3952.2,2.31528]
[1761280893326,0.2194,3954.7,3952.4,0.76008]
[1761280893531,0.2194,3954.7,3952.6,2.31528]
[1761280893727,0.4747,3954.6,3952.7,2.27662015]
[1761280893928,0.4747,3954.6,3951.8,1.5552]
[1761280893929,0.4747,3954.6,3953.0,0.50688]
[1761280894113,0.4747,3954.6,3953.1,3.9232]
[1761280894319,0.4747,3954.6,3953.3,1.5552]
[1761280894528,0.4747,3954.6,3953.4,0.02529468]
[1761280894870,0.4747,3954.6,3953.4,0.40391483]
[1761280895149,0.4747,3954.6,3953.5,0.37862015]
[1761280895313,0.4747,3954.6,3953.6,3.9571734]
[1761280895514,0.4747,3955.5,3953.8,0.50688]
[1761280895715,0.2194,3955.3,3954.0,0.50688]
[1761280896039,0.2194,3955.3,3954.2,2.06208]
[1761280896243,0.2194,3955.3,3954.4,0.50688]
[1761280896432,0.4747,3955.5,3954.6,2.06208]
[1761280896752,0.4747,3955.5,3954.8,2.06208]
[1761280896955,0.2194,3955.6,3954.8,2.06208]
[1761280897319,0.2194,3955.6,3955.4,0.1264]
[1761280897320,0.4747,3955.5,3955.4,0.1264]
[1761280897522,0.4747,3955.5,3955.4,2.4444]
[1761280897933,0.2194,3955.6,3955.4,2.4444]
[1761280898130,0.6941,3956.0,3955.4,2.4444]
[1761280898537,0.6941,3956.0,3955.9,0.1264]
[1761280898741,0.6941,3956.0,3955.9,3.5494]
[1761280898943,0.03453845,3956.8,3955.9,3.5494]
[1761280898944,0.003,3956.8,3955.9,3.423]
[1761280899156,0.4747,3956.7,3953.1,2.57791086]
[1761280899335,0.4747,3956.7,3954.7,5.85116636]
[1761280899678,0.4747,3956.7,3954.9,0.50688]
[1761280900253,0.4747,3956.7,3954.4,0.50688]
[1761280900463,0.4747,3956.7,3954.6,2.06208]
[1761280900882,0.619575,3956.7,3954.6,2.43685222]
[1761280901052,0.619575,3956.7,3954.8,0.50688]
[1761280901253,0.619575,3956.7,3954.9,0.02528508]
[1761280901564,0.4747,3956.6,3955.1,2.06208]
[1761280901774,0.4747,3956.6,3955.1,2.08736381]
[1761280902471,0.003,3956.8,3955.3,0.50688]
[1761280902647,0.003,3956.8,3955.3,0.85636522]
[1761280902847,0.4777,3956.8,3955.3,0.85636522]
[1761280903046,0.4777,3956.8,3955.4,0.02528189]
[1761280903047,0.62935,3956.8,3955.4,0.02528189]
[1761280903373,0.62935,3956.8,3955.5,2.06208]
[1761280903568,0.62935,3956.8,3955.6,0.02528061]
[1761280904259,0.15465,3956.8,3955.6,0.02528061]
[1761280904572,0.4747,3956.7,3955.6,0.02528061]
[1761280905231,0.619575,3956.7,3955.5,0.50688]
[1761280905439,0.619575,3956.7,3955.7,1.5552]
[1761280905732,0.619575,3956.7,3955.8,5.314]
[1761280905733,0.4747,3956.6,3955.8,5.314]
[1761280905935,0.4747,3956.6,3955.9,1.896]
[1761280906779,0.4747,3956.6,3954.8,0.50688]
[1761280906979,0.4747,3956.6,3955.0,0.50688]
[1761280907196,0.4747,3956.6,3955.1,0.44428381]
[1761280909094,0.4747,3956.6,3956.5,0.1264]
[1761280909390,0.4747,3956.6,3956.5,3.5424]
[1761280913168,0.4757,3956.6,3956.5,3.5424]
[1761280913770,0.001,3956.6,3956.5,3.5424]
[1761280913969,0.4757,3956.6,3956.5,3.5424]
[1761280914674,0.4757,3956.6,3956.5,3.413]
[1761280915770,0.001,3956.6,3956.5,3.413]
[1761280916203,0.001,3956.6,3956.5,5.47508]
[1761280916403,0.2194,3958.4,3956.6,2.41156522]
[1761280916611,0.2194,3961.0,3956.7,0.02527358]
[1761280916808,0.4747,3960.2,3957.0,0.50688]
[1761280917007,0.4747,3959.7,3957.0,0.83844972]
[1761280917212,0.4747,3959.7,3957.2,0.50688]
[1761280917379,0.4747,3959.7,3957.2,2.06208]
[1761280917576,0.03153845,3960.9,3957.3,0.02526975]
[1761280917918,0.2194,3961.0,3957.6,0.50688]
[1761280917919,0.6941,3960.0,3957.6,0.50688]
[1761280918082,0.2194,3960.0,3957.7,0.35683692]
[1761280918283,0.4747,3960.3,3957.7,0.35683692]
[1761280918284,0.4747,3960.3,3957.8,5.59608]
[1761280918500,0.4747,3960.3,3958.0,0.50688]
[1761280918713,0.4747,3960.3,3958.2,0.50688]
[1761280919013,0.2194,3961.0,3957.9,0.33201972]
[1761280919014,0.2194,3959.8,3957.9,0.33201972]
[1761280919197,0.4292,3959.6,3958.4,2.06208]
[1761280919509,0.2194,3959.8,3958.6,0.50688]
[1761280919697,0.4292,3960.3,3958.7,0.02526081]
[1761280920206,0.4292,3960.6,3958.7,0.02526081]
[1761280920594,0.2194,3961.0,3958.6,0.50688]
[1761280920595,0.2194,3961.0,3958.8,0.35727989]
[1761280921892,0.003,3961.1,3958.9,0.50688]
[1761280922093,0.003,3961.1,3959.1,0.50688]
[1761280922323,0.003,3961.1,3959.3,2.06208]
[1761280922530,0.003,3961.1,3959.3,2.39409972]
[1761280922734,0.2205,3960.5,3959.3,1.88721972]
[1761280922933,0.2205,3960.5,3959.3,6.4022]
[1761280923096,0.003,3961.1,3959.3,6.4022]
[1761280923097,0.003,3961.1,3959.3,6.90908]
[1761280923422,0.4292,3961.0,3959.3,7.25835792]
[1761280923802,0.2205,3960.9,3959.3,7.71335792]
[1761280924125,0.2205,3960.9,3959.3,4.30635792]
[1761280924309,0.4292,3960.7,3959.3,7.36408]
[1761280924510,0.2205,3960.9,3959.3,1.895]
[1761280924511,0.6497,3959.8,3959.3,1.895]
[1761280924722,0.4352,3959.4,3959.3,4.667]
[1761280924948,0.006,3959.4,3959.3,4.667]
[1761280925125,0.006,3959.4,3959.3,6.2222]
[1761280925313,0.006,3959.4,3959.3,6.72908]
[1761280925511,0.006,3959.4,3959.3,7.36308]
[1761280926247,0.006,3959.4,3959.3,1.5552]
[1761280926537,0.2194,3961.3,3959.3,0.02525698]